[Event "Titled Tuesday Blitz February 15 Late 2022"]
[White "Golubenko, Valentina"]
[Black "Antonova, Nadezhda"]
[WhiteFideId "4501993"]
[BlackFideId "14700182"]
[WhiteElo "2164"]
[BlackElo "1765"]
[Result "0-1"]
[Round "10"]
[TimeControl "180+1"]
[Date "2022.02.16"]
[WhiteClock "0:00:12"]
[BlackClock "0:00:06"]

1. d4 {[%clk 0:03:00]}  Nf6 {[%clk 0:02:59]} 2. g3 {[%clk 0:03:01]}  g6 {[%clk 0:02:58]} 3. Bg2 {[%clk 0:03:01]}  Bg7 {[%clk 0:02:59]} 4. c4 {[%clk 0:03:02]}  O-O {[%clk 0:02:59]} 5. d5 {[%clk 0:03:01]}  e6 {[%clk 0:02:55]} 6. Nc3 {[%clk 0:03:01]}  exd5 {[%clk 0:02:54]} 7. cxd5 {[%clk 0:03:01]}  d6 {[%clk 0:02:51]} 8. Nf3 {[%clk 0:03:01]}  Re8 {[%clk 0:02:51]} 9. O-O {[%clk 0:03:01]}  Nbd7 {[%clk 0:02:50]} 10. Re1 {[%clk 0:02:49]}  Nc5 {[%clk 0:02:47]} 11. Nd4 {[%clk 0:02:43]}  Bd7 {[%clk 0:02:33]} 12. e4 {[%clk 0:02:30]}  a6 {[%clk 0:02:32]} 13. b4 {[%clk 0:02:23]}  Bg4 {[%clk 0:02:22]} 14. f3 {[%clk 0:02:15]}  Ncxe4 {[%clk 0:02:21]} 15. Nxe4 {[%clk 0:02:11]}  Nxe4 {[%clk 0:02:20]} 16. fxg4 {[%clk 0:02:01]}  Nc3 {[%clk 0:02:09]} 17. Rxe8+ {[%clk 0:01:09]}  Qxe8 {[%clk 0:02:08]} 18. Qd2 {[%clk 0:01:07]}  Bxd4+ {[%clk 0:02:02]} 19. Kh1 {[%clk 0:01:07]}  Nb5 {[%clk 0:01:10]} 20. Bb2 {[%clk 0:01:05]}  Bxb2 {[%clk 0:01:03]} 21. Qxb2 {[%clk 0:01:04]}  Qe3 {[%clk 0:00:58]} 22. Rf1 {[%clk 0:00:40]}  Qd4 {[%clk 0:00:42]} 23. Qe2 {[%clk 0:00:35]}  Qe5 {[%clk 0:00:30]} 24. Qf2 {[%clk 0:00:31]}  f6 {[%clk 0:00:14]} 25. Re1 {[%clk 0:00:28]}  Qd4 {[%clk 0:00:13]} 26. Qf3 {[%clk 0:00:25]}  Qc3 {[%clk 0:00:09]} 27. Rf1 {[%clk 0:00:22]}  Re8 {[%clk 0:00:08]} 28. h4 {[%clk 0:00:20]}  Qxf3 {[%clk 0:00:08]} 29. Rxf3 {[%clk 0:00:20]}  Re7 {[%clk 0:00:07]} 30. Rxf6 {[%clk 0:00:19]}  Nc3 {[%clk 0:00:07]} 31. g5 {[%clk 0:00:17]}  Nxa2 {[%clk 0:00:06]} 32. Bh3 {[%clk 0:00:17]}  Kg7 {[%clk 0:00:05]} 33. Be6 {[%clk 0:00:17]}  Nxb4 {[%clk 0:00:05]} 34. Rf4 {[%clk 0:00:16]}  a5 {[%clk 0:00:04]} 35. h5 {[%clk 0:00:17]}  gxh5 {[%clk 0:00:04]} 36. Rh4 {[%clk 0:00:17]}  Kg6 {[%clk 0:00:04]} 37. Rf4 {[%clk 0:00:17]}  Kxg5 {[%clk 0:00:04]} 38. Rf5+ {[%clk 0:00:17]}  Kg6 {[%clk 0:00:04]} 39. Kg2 {[%clk 0:00:17]}  a4 {[%clk 0:00:03]} 40. Rf4 {[%clk 0:00:17]}  Nd3 {[%clk 0:00:03]} 41. Rxa4 {[%clk 0:00:17]}  b6 {[%clk 0:00:03]} 42. Ra3 {[%clk 0:00:16]}  Nc5 {[%clk 0:00:03]} 43. Rf3 {[%clk 0:00:17]}  Nxe6 {[%clk 0:00:03]} 44. dxe6 {[%clk 0:00:15]}  Rxe6 {[%clk 0:00:03]} 45. Rc3 {[%clk 0:00:15]}  Re7 {[%clk 0:00:03]} 46. Rb3 {[%clk 0:00:14]}  c5 {[%clk 0:00:03]} 47. Rd3 {[%clk 0:00:14]}  Rd7 {[%clk 0:00:03]} 48. Rb3 {[%clk 0:00:13]}  d5 {[%clk 0:00:03]} 49. Rxb6+ {[%clk 0:00:13]}  Kg5 {[%clk 0:00:04]} 50. Rc6 {[%clk 0:00:14]}  c4 {[%clk 0:00:04]} 51. Rc5 {[%clk 0:00:14]}  Rd6 {[%clk 0:00:04]} 52. Kf3 {[%clk 0:00:14]}  h6 {[%clk 0:00:04]} 53. Ke3 {[%clk 0:00:14]}  Kf5 {[%clk 0:00:04]} 54. Kf3 {[%clk 0:00:14]}  Ke5 {[%clk 0:00:04]} 55. Ke3 {[%clk 0:00:14]}  Kf5 {[%clk 0:00:04]} 56. Kf3 {[%clk 0:00:14]}  Ke6 {[%clk 0:00:04]} 57. Ke3 {[%clk 0:00:14]}  Ke5 {[%clk 0:00:04]} 58. Kf3 {[%clk 0:00:15]}  Kd4 {[%clk 0:00:04]} 59. Rc8 {[%clk 0:00:15]}  c3 {[%clk 0:00:04]} 60. Ke2 {[%clk 0:00:15]}  Re6+ {[%clk 0:00:04]} 61. Kd1 {[%clk 0:00:15]}  Kd3 {[%clk 0:00:04]} 62. Rc5 {[%clk 0:00:13]}  d4 {[%clk 0:00:04]} 63. Rxh5 {[%clk 0:00:11]}  Ra6 {[%clk 0:00:04]} 64. Ke1 {[%clk 0:00:11]}  Ra1+ {[%clk 0:00:04]} 65. Kf2 {[%clk 0:00:11]}  c2 {[%clk 0:00:04]} 66. Rc5 {[%clk 0:00:11]}  c1=Q {[%clk 0:00:04]} 67. Rxc1 {[%clk 0:00:11]}  Rxc1 {[%clk 0:00:05]} 68. Kf3 {[%clk 0:00:11]}  Rg1 {[%clk 0:00:05]} 69. Kg4 {[%clk 0:00:11]}  Ke2 {[%clk 0:00:05]} 70. Kh5 {[%clk 0:00:11]}  d3 {[%clk 0:00:06]} 71. g4 {[%clk 0:00:11]}  d2 {[%clk 0:00:06]} 72. Kxh6 {[%clk 0:00:12]}  Rxg4 {[%clk 0:00:06]} 73. Kh5 {[%clk 0:00:11]}  Rg1 {[%clk 0:00:06]} 74. Kh4 {[%clk 0:00:12]}  d1=Q {[%clk 0:00:06]} 75. Kh3 {[%clk 0:00:12]}  Qd3+ {[%clk 0:00:06]} 76. Kh2 {[%clk 0:00:12]}  Qg3# {[%clk 0:00:06]} 0-1


[Site "https://www.chess.com"]

[Event "Titled Tuesday Blitz February 15 Late 2022"]
[White "Gracia Alvarez, Gerardo Antonio"]
[Black "Kim, Sergey"]
[WhiteFideId "5109124"]
[BlackFideId "13700570"]
[WhiteElo "2466"]
[BlackElo "2620"]
[Result "1/2-1/2"]
[Round "10"]
[TimeControl "180+1"]
[Date "2022.02.16"]
[WhiteClock "0:01:25"]
[BlackClock "0:01:32"]

1. e4 {[%clk 0:03:00]}  e5 {[%clk 0:02:59]} 2. Nc3 {[%clk 0:03:01]}  Nf6 {[%clk 0:02:58]} 3. f4 {[%clk 0:03:00]}  d5 {[%clk 0:02:57]} 4. fxe5 {[%clk 0:02:58]}  Nxe4 {[%clk 0:02:58]} 5. Qf3 {[%clk 0:02:55]}  Nxc3 {[%clk 0:02:57]} 6. dxc3 {[%clk 0:02:53]}  c5 {[%clk 0:02:57]} 7. Bf4 {[%clk 0:02:45]}  Be6 {[%clk 0:02:55]} 8. O-O-O {[%clk 0:02:40]}  Qa5 {[%clk 0:02:55]} 9. Kb1 {[%clk 0:02:33]}  Nc6 {[%clk 0:02:54]} 10. Nh3 {[%clk 0:02:21]}  h6 {[%clk 0:02:51]} 11. Bd3 {[%clk 0:02:00]}  O-O-O {[%clk 0:02:37]} 12. Bg3 {[%clk 0:01:56]}  g5 {[%clk 0:02:30]} 13. Bf5 {[%clk 0:01:54]}  d4 {[%clk 0:01:49]} 14. c4 {[%clk 0:01:49]}  Be7 {[%clk 0:01:44]} 15. Bxe6+ {[%clk 0:01:44]}  fxe6 {[%clk 0:01:44]} 16. Qf7 {[%clk 0:01:44]}  Kd7 {[%clk 0:01:41]} 17. Rhf1 {[%clk 0:01:30]}  Rdf8 {[%clk 0:01:34]} 18. Qg7 {[%clk 0:01:26]}  Rfg8 {[%clk 0:01:32]} 19. Qf7 {[%clk 0:01:24]}  Rf8 {[%clk 0:01:32]} 20. Qg7 {[%clk 0:01:25]}  Rfg8 {[%clk 0:01:32]} 21. Qf7 {[%clk 0:01:25]}  Rf8 {[%clk 0:01:32]} 1/2-1/2


[Site "https://www.chess.com"]

[Event "Titled Tuesday Blitz February 15 Late 2022"]
[White "Gurevich, Dmitry"]
[Black "Corrales Jimenez, Fidel"]
[WhiteFideId "2000407"]
[BlackFideId "3506690"]
[WhiteElo "2506"]
[BlackElo "2541"]
[Result "1-0"]
[Round "10"]
[TimeControl "180+1"]
[Date "2022.02.15"]
[WhiteClock "0:00:04"]
[BlackClock "0:00:10"]

1. d4 {[%clk 0:03:00]}  Nf6 {[%clk 0:02:58]} 2. c4 {[%clk 0:02:59]}  g6 {[%clk 0:02:59]} 3. Nc3 {[%clk 0:02:59]}  d5 {[%clk 0:02:59]} 4. Nf3 {[%clk 0:02:58]}  Bg7 {[%clk 0:02:59]} 5. cxd5 {[%clk 0:02:58]}  Nxd5 {[%clk 0:03:00]} 6. Bd2 {[%clk 0:02:58]}  Nb6 {[%clk 0:02:59]} 7. Bg5 {[%clk 0:02:57]}  O-O {[%clk 0:02:59]} 8. e3 {[%clk 0:02:56]}  h6 {[%clk 0:02:54]} 9. Bf4 {[%clk 0:02:56]}  g5 {[%clk 0:02:54]} 10. Bg3 {[%clk 0:02:55]}  Nc6 {[%clk 0:02:51]} 11. Bb5 {[%clk 0:02:53]}  Bd7 {[%clk 0:02:48]} 12. O-O {[%clk 0:02:51]}  a6 {[%clk 0:02:46]} 13. Be2 {[%clk 0:02:45]}  Rc8 {[%clk 0:02:01]} 14. Rc1 {[%clk 0:02:35]}  Re8 {[%clk 0:02:00]} 15. d5 {[%clk 0:02:29]}  Na7 {[%clk 0:01:52]} 16. Ne5 {[%clk 0:02:20]}  c6 {[%clk 0:01:49]} 17. Qb3 {[%clk 0:01:59]}  Bxe5 {[%clk 0:01:24]} 18. Bxe5 {[%clk 0:01:58]}  cxd5 {[%clk 0:01:24]} 19. Bd4 {[%clk 0:01:41]}  Nb5 {[%clk 0:00:57]} 20. Nxb5 {[%clk 0:01:40]}  axb5 {[%clk 0:00:56]} 21. Bxb5 {[%clk 0:01:37]}  Bxb5 {[%clk 0:00:53]} 22. Qxb5 {[%clk 0:01:35]}  Nc4 {[%clk 0:00:49]} 23. b3 {[%clk 0:01:23]}  Nd6 {[%clk 0:00:48]} 24. Qxd5 {[%clk 0:01:19]}  Qd7 {[%clk 0:00:44]} 25. Qe5 {[%clk 0:00:55]}  f6 {[%clk 0:00:44]} 26. Qd5+ {[%clk 0:00:55]}  Kg7 {[%clk 0:00:41]} 27. Bc5 {[%clk 0:00:46]}  Qf5 {[%clk 0:00:41]} 28. Qxf5 {[%clk 0:00:41]}  Nxf5 {[%clk 0:00:42]} 29. e4 {[%clk 0:00:40]}  Nh4 {[%clk 0:00:42]} 30. Bb4 {[%clk 0:00:31]}  Ng6 {[%clk 0:00:40]} 31. g3 {[%clk 0:00:29]}  Kf7 {[%clk 0:00:40]} 32. Kg2 {[%clk 0:00:29]}  g4 {[%clk 0:00:40]} 33. h3 {[%clk 0:00:28]}  h5 {[%clk 0:00:40]} 34. hxg4 {[%clk 0:00:28]}  hxg4 {[%clk 0:00:41]} 35. Rfd1 {[%clk 0:00:27]}  Ne5 {[%clk 0:00:41]} 36. Bc3 {[%clk 0:00:24]}  Nf3 {[%clk 0:00:40]} 37. Bb2 {[%clk 0:00:24]}  Rxc1 {[%clk 0:00:38]} 38. Rxc1 {[%clk 0:00:23]}  Rd8 {[%clk 0:00:38]} 39. Rc2 {[%clk 0:00:21]}  Rh8 {[%clk 0:00:37]} 40. Kf1 {[%clk 0:00:18]}  e5 {[%clk 0:00:35]} 41. Ke2 {[%clk 0:00:16]}  Ke6 {[%clk 0:00:34]} 42. Bc3 {[%clk 0:00:14]}  Rc8 {[%clk 0:00:33]} 43. Rc1 {[%clk 0:00:13]}  b5 {[%clk 0:00:31]} 44. Bb2 {[%clk 0:00:12]}  Ra8 {[%clk 0:00:29]} 45. a3 {[%clk 0:00:11]}  Rd8 {[%clk 0:00:26]} 46. Rd1 {[%clk 0:00:11]}  Rh8 {[%clk 0:00:23]} 47. a4 {[%clk 0:00:10]}  b4 {[%clk 0:00:22]} 48. a5 {[%clk 0:00:10]}  Ra8 {[%clk 0:00:19]} 49. Ra1 {[%clk 0:00:08]}  Ra6 {[%clk 0:00:19]} 50. Kd3 {[%clk 0:00:08]}  Kd6 {[%clk 0:00:12]} 51. Kc4 {[%clk 0:00:08]}  Kc6 {[%clk 0:00:12]} 52. Kxb4 {[%clk 0:00:08]}  Kb7 {[%clk 0:00:12]} 53. Kb5 {[%clk 0:00:08]}  Nd2 {[%clk 0:00:10]} 54. Rd1 {[%clk 0:00:07]}  Rd6 {[%clk 0:00:11]} 55. Bc3 {[%clk 0:00:05]}  Nxe4 {[%clk 0:00:11]} 56. Rxd6 {[%clk 0:00:04]}  Nxd6+ {[%clk 0:00:11]} 57. Kc5 {[%clk 0:00:04]}  Ne4+ {[%clk 0:00:12]} 58. Kc4 {[%clk 0:00:04]}  Nxf2 {[%clk 0:00:12]} 59. b4 {[%clk 0:00:04]}  Ne4 {[%clk 0:00:12]} 60. Be1 {[%clk 0:00:03]}  Nd6+ {[%clk 0:00:11]} 61. Kc5 {[%clk 0:00:03]}  Ne4+ {[%clk 0:00:11]} 62. Kd5 {[%clk 0:00:03]}  Ng5 {[%clk 0:00:08]} 63. b5 {[%clk 0:00:02]}  e4 {[%clk 0:00:08]} 64. Bf2 {[%clk 0:00:02]}  f5 {[%clk 0:00:08]} 65. a6+ {[%clk 0:00:03]}  Kb8 {[%clk 0:00:05]} 66. Bc5 {[%clk 0:00:03]}  Nf7 {[%clk 0:00:04]} 67. b6 {[%clk 0:00:04]}  Nd8 {[%clk 0:00:04]} 68. Bd6+ {[%clk 0:00:03]}  Kc8 {[%clk 0:00:05]} 69. b7+ {[%clk 0:00:04]}  Nxb7 {[%clk 0:00:05]} 70. a7 {[%clk 0:00:05]}  Nxd6 {[%clk 0:00:04]} 71. a8=Q+ {[%clk 0:00:05]}  Kc7 {[%clk 0:00:05]} 72. Qc6+ {[%clk 0:00:05]}  Kb8 {[%clk 0:00:04]} 73. Qxd6+ {[%clk 0:00:05]}  Ka7 {[%clk 0:00:05]} 74. Qf4 {[%clk 0:00:05]}  Ka6 {[%clk 0:00:06]} 75. Qxf5 {[%clk 0:00:06]}  e3 {[%clk 0:00:07]} 76. Qe5 {[%clk 0:00:03]}  Kb5 {[%clk 0:00:08]} 77. Qxe3 {[%clk 0:00:03]}  Kb4 {[%clk 0:00:08]} 78. Qf4+ {[%clk 0:00:04]}  Kc3 {[%clk 0:00:09]} 79. Qxg4 {[%clk 0:00:04]}  Kd2 {[%clk 0:00:10]} 80. Qf4+ {[%clk 0:00:04]} 1-0


[Site "https://www.chess.com"]

[Event "Titled Tuesday Blitz February 15 Late 2022"]
[White "Hambleton, Aman"]
[Black "Sadhwani, Raunak"]
[WhiteFideId "2606577"]
[BlackFideId "35093487"]
[WhiteElo "2552"]
[BlackElo "2616"]
[Result "0-1"]
[Round "10"]
[TimeControl "180+1"]
[Date "2022.02.15"]
[WhiteClock "0:00:01"]
[BlackClock "0:00:38"]

1. d4 {[%clk 0:03:00]}  Nf6 {[%clk 0:02:59]} 2. Bf4 {[%clk 0:02:55]}  d5 {[%clk 0:02:55]} 3. e3 {[%clk 0:02:55]}  e6 {[%clk 0:02:52]} 4. Nf3 {[%clk 0:02:49]}  c5 {[%clk 0:02:52]} 5. c3 {[%clk 0:02:50]}  Nc6 {[%clk 0:02:52]} 6. Nbd2 {[%clk 0:02:50]}  Nh5 {[%clk 0:02:52]} 7. Be5 {[%clk 0:02:33]}  f6 {[%clk 0:02:48]} 8. Bg3 {[%clk 0:02:32]}  g6 {[%clk 0:02:48]} 9. Bd3 {[%clk 0:02:29]}  Be7 {[%clk 0:02:40]} 10. O-O {[%clk 0:02:18]}  O-O {[%clk 0:02:40]} 11. dxc5 {[%clk 0:02:00]}  Bxc5 {[%clk 0:02:33]} 12. e4 {[%clk 0:02:00]}  Nxg3 {[%clk 0:02:29]} 13. hxg3 {[%clk 0:02:01]}  dxe4 {[%clk 0:02:27]} 14. Nxe4 {[%clk 0:01:59]}  Be7 {[%clk 0:02:27]} 15. Qe2 {[%clk 0:01:34]}  e5 {[%clk 0:02:23]} 16. Rad1 {[%clk 0:01:26]}  Qc7 {[%clk 0:02:22]} 17. Bc4+ {[%clk 0:01:21]}  Kg7 {[%clk 0:02:22]} 18. b4 {[%clk 0:01:13]}  f5 {[%clk 0:02:17]} 19. Nc5 {[%clk 0:00:52]}  e4 {[%clk 0:02:06]} 20. Nd4 {[%clk 0:00:47]}  Bxc5 {[%clk 0:01:31]} 21. bxc5 {[%clk 0:00:48]}  Ne5 {[%clk 0:01:31]} 22. Ne6+ {[%clk 0:00:22]}  Bxe6 {[%clk 0:01:31]} 23. Bxe6 {[%clk 0:00:23]}  Rae8 {[%clk 0:01:26]} 24. Bb3 {[%clk 0:00:17]}  Qxc5 {[%clk 0:01:23]} 25. Rd5 {[%clk 0:00:07]}  Qxc3 {[%clk 0:01:22]} 26. Rfd1 {[%clk 0:00:07]}  Re7 {[%clk 0:01:22]} 27. Rd6 {[%clk 0:00:04]}  Rfe8 {[%clk 0:01:05]} 28. Qb5 {[%clk 0:00:04]}  Nd3 {[%clk 0:00:59]} 29. Rd7 {[%clk 0:00:02]}  Qc5 {[%clk 0:00:54]} 30. Rxe7+ {[%clk 0:00:02]}  Rxe7 {[%clk 0:00:55]} 31. Qxc5 {[%clk 0:00:01]}  Nxc5 {[%clk 0:00:56]} 32. Rd8 {[%clk 0:00:01]}  Nxb3 {[%clk 0:00:52]} 33. axb3 {[%clk 0:00:02]}  Kf6 {[%clk 0:00:52]} 34. Kf1 {[%clk 0:00:02]}  Ke6 {[%clk 0:00:51]} 35. Ke2 {[%clk 0:00:03]}  Rd7 {[%clk 0:00:51]} 36. Ra8 {[%clk 0:00:02]}  a6 {[%clk 0:00:50]} 37. Rb8 {[%clk 0:00:02]}  Kd6 {[%clk 0:00:48]} 38. f3 {[%clk 0:00:02]}  exf3+ {[%clk 0:00:47]} 39. gxf3 {[%clk 0:00:03]}  Kc5 {[%clk 0:00:48]} 40. Re8 {[%clk 0:00:01]}  Kb4 {[%clk 0:00:48]} 41. Re3 {[%clk 0:00:02]}  b5 {[%clk 0:00:48]} 42. g4 {[%clk 0:00:02]}  fxg4 {[%clk 0:00:48]} 43. fxg4 {[%clk 0:00:03]}  h5 {[%clk 0:00:47]} 44. g5 {[%clk 0:00:02]}  a5 {[%clk 0:00:45]} 45. Kf3 {[%clk 0:00:01]}  Rd5 {[%clk 0:00:39]} 46. Ke4 {[%clk 0:00:01]}  Rxg5 {[%clk 0:00:38]} 0-1


[Site "https://www.chess.com"]

[Event "Titled Tuesday Blitz February 15 Late 2022"]
[White "Haszon, David"]
[Black "Josse, Mark"]
[WhiteFideId "733610"]
[BlackFideId "414476"]
[WhiteElo "2201"]
[BlackElo "2288"]
[Result "0-1"]
[Round "10"]
[TimeControl "180+1"]
[Date "2022.02.16"]
[WhiteClock "0:00:45"]
[BlackClock "0:01:00"]

1. e4 {[%clk 0:03:00]}  e6 {[%clk 0:02:59]} 2. d4 {[%clk 0:03:00]}  d5 {[%clk 0:02:59]} 3. Nd2 {[%clk 0:03:01]}  Nf6 {[%clk 0:02:59]} 4. e5 {[%clk 0:03:01]}  Nfd7 {[%clk 0:03:00]} 5. Bd3 {[%clk 0:03:01]}  c5 {[%clk 0:03:00]} 6. c3 {[%clk 0:03:01]}  b6 {[%clk 0:02:55]} 7. Qe2 {[%clk 0:02:57]}  a5 {[%clk 0:02:55]} 8. f4 {[%clk 0:02:53]}  Ba6 {[%clk 0:02:52]} 9. Ngf3 {[%clk 0:02:54]}  g6 {[%clk 0:02:50]} 10. O-O {[%clk 0:02:53]}  Bxd3 {[%clk 0:02:49]} 11. Qxd3 {[%clk 0:02:53]}  Nc6 {[%clk 0:02:50]} 12. c4 {[%clk 0:02:50]}  dxc4 {[%clk 0:02:41]} 13. Qxc4 {[%clk 0:02:50]}  Be7 {[%clk 0:02:40]} 14. d5 {[%clk 0:02:49]}  exd5 {[%clk 0:02:38]} 15. Qxd5 {[%clk 0:02:50]}  Ndb8 {[%clk 0:02:37]} 16. Qb3 {[%clk 0:02:42]}  O-O {[%clk 0:02:34]} 17. Nc4 {[%clk 0:02:40]}  Nd7 {[%clk 0:02:25]} 18. f5 {[%clk 0:02:35]}  a4 {[%clk 0:02:20]} 19. Qc2 {[%clk 0:02:28]}  b5 {[%clk 0:02:16]} 20. Nd6 {[%clk 0:02:11]}  Ndxe5 {[%clk 0:02:13]} 21. Nxe5 {[%clk 0:02:07]}  Nxe5 {[%clk 0:02:13]} 22. Ne4 {[%clk 0:02:01]}  Qd4+ {[%clk 0:01:53]} 23. Kh1 {[%clk 0:01:55]}  Qd3 {[%clk 0:01:53]} 24. Qxd3 {[%clk 0:01:53]}  Nxd3 {[%clk 0:01:53]} 25. f6 {[%clk 0:01:54]}  Bd8 {[%clk 0:01:52]} 26. Bh6 {[%clk 0:01:49]}  Re8 {[%clk 0:01:51]} 27. Nd6 {[%clk 0:01:49]}  Re6 {[%clk 0:01:48]} 28. Nxb5 {[%clk 0:01:47]}  Rxf6 {[%clk 0:01:47]} 29. Nc3 {[%clk 0:01:35]}  Nxb2 {[%clk 0:01:41]} 30. Be3 {[%clk 0:01:32]}  c4 {[%clk 0:01:32]} 31. Bd4 {[%clk 0:01:21]}  Rxf1+ {[%clk 0:01:30]} 32. Rxf1 {[%clk 0:01:22]}  Nd3 {[%clk 0:01:30]} 33. g3 {[%clk 0:01:16]}  f5 {[%clk 0:01:29]} 34. Kg2 {[%clk 0:01:16]}  Rb8 {[%clk 0:01:28]} 35. Nxa4 {[%clk 0:01:13]}  Ra8 {[%clk 0:01:27]} 36. Nc3 {[%clk 0:01:13]}  Ra3 {[%clk 0:01:23]} 37. Rb1 {[%clk 0:00:56]}  Ba5 {[%clk 0:01:19]} 38. Rb8+ {[%clk 0:00:57]}  Kf7 {[%clk 0:01:20]} 39. Rb7+ {[%clk 0:00:57]}  Ke6 {[%clk 0:01:11]} 40. Ra7 {[%clk 0:00:49]}  Bxc3 {[%clk 0:01:08]} 41. Rxa3 {[%clk 0:00:45]}  Bxd4 {[%clk 0:01:08]} 42. Ra6+ {[%clk 0:00:46]}  Ke5 {[%clk 0:01:05]} 43. Ra5+ {[%clk 0:00:46]}  Ke4 {[%clk 0:01:02]} 44. Ra8 {[%clk 0:00:45]}  c3 {[%clk 0:01:00]} 45. Rc8 {[%clk 0:00:45]}  Nc5 {[%clk 0:01:00]} 0-1


[Site "https://www.chess.com"]

[Event "Titled Tuesday Blitz February 15 Late 2022"]
[White "Hess, Robert"]
[Black "Debray, Christopher"]
[WhiteFideId "2022036"]
[BlackFideId "630810"]
[WhiteElo "2557"]
[BlackElo "2369"]
[Result "1-0"]
[Round "10"]
[TimeControl "180+1"]
[Date "2022.02.15"]
[WhiteClock "0:01:16"]
[BlackClock "0:00:14"]

1. b3 {[%clk 0:03:00]}  d5 {[%clk 0:02:56]} 2. Bb2 {[%clk 0:03:01]}  Nf6 {[%clk 0:02:51]} 3. d3 {[%clk 0:03:02]}  Nc6 {[%clk 0:02:45]} 4. Nd2 {[%clk 0:03:01]}  e5 {[%clk 0:02:44]} 5. h3 {[%clk 0:03:01]}  Bc5 {[%clk 0:02:37]} 6. e3 {[%clk 0:03:01]}  O-O {[%clk 0:02:37]} 7. a3 {[%clk 0:03:01]}  Bb6 {[%clk 0:02:36]} 8. g4 {[%clk 0:03:01]}  Re8 {[%clk 0:02:33]} 9. Bg2 {[%clk 0:03:01]}  h6 {[%clk 0:02:19]} 10. Ne2 {[%clk 0:03:00]}  a5 {[%clk 0:02:14]} 11. Ng3 {[%clk 0:02:59]}  Be6 {[%clk 0:02:03]} 12. Qe2 {[%clk 0:02:59]}  Qd7 {[%clk 0:02:03]} 13. O-O-O {[%clk 0:02:56]}  a4 {[%clk 0:02:00]} 14. b4 {[%clk 0:02:55]}  d4 {[%clk 0:01:51]} 15. Nc4 {[%clk 0:02:34]}  Nd5 {[%clk 0:01:37]} 16. Bxd5 {[%clk 0:02:23]}  Bxd5 {[%clk 0:01:31]} 17. e4 {[%clk 0:02:23]}  Be6 {[%clk 0:01:26]} 18. Nf5 {[%clk 0:02:23]}  f6 {[%clk 0:01:07]} 19. h4 {[%clk 0:02:20]}  Na7 {[%clk 0:00:50]} 20. Rdg1 {[%clk 0:02:13]}  Nb5 {[%clk 0:00:47]} 21. g5 {[%clk 0:02:10]}  Bxf5 {[%clk 0:00:36]} 22. gxf6 {[%clk 0:02:02]}  g6 {[%clk 0:00:31]} 23. Qf3 {[%clk 0:01:38]}  Kh7 {[%clk 0:00:19]} 24. exf5 {[%clk 0:01:34]}  Qxf5 {[%clk 0:00:20]} 25. Qxf5 {[%clk 0:01:23]}  gxf5 {[%clk 0:00:21]} 26. Rg7+ {[%clk 0:01:17]}  Kh8 {[%clk 0:00:21]} 27. Rhg1 {[%clk 0:01:17]}  Rg8 {[%clk 0:00:20]} 28. Nxe5 {[%clk 0:01:16]}  Nd6 {[%clk 0:00:14]} 29. Ng6# {[%clk 0:01:16]} 1-0


[Site "https://www.chess.com"]

[Event "Titled Tuesday Blitz February 15 Late 2022"]
[White "Horak, Martin"]
[Black "Vine, Elzbieta"]
[WhiteFideId "367095"]
[BlackFideId "1119320"]
[WhiteElo "1997"]
[BlackElo "1848"]
[Result "1-0"]
[Round "10"]
[TimeControl "180+1"]
[Date "2022.02.16"]
[WhiteClock "0:01:26"]
[BlackClock "0:01:11"]

1. d4 {[%clk 0:02:55]}  d5 {[%clk 0:02:59]} 2. c4 {[%clk 0:02:48]}  dxc4 {[%clk 0:02:58]} 3. e4 {[%clk 0:02:46]}  Nc6 {[%clk 0:02:55]} 4. Be3 {[%clk 0:02:28]}  g6 {[%clk 0:02:46]} 5. Bxc4 {[%clk 0:02:26]}  Bg7 {[%clk 0:02:46]} 6. Ne2 {[%clk 0:02:27]}  Bg4 {[%clk 0:02:39]} 7. f3 {[%clk 0:02:27]}  Bd7 {[%clk 0:02:32]} 8. Nbc3 {[%clk 0:02:20]}  e6 {[%clk 0:02:29]} 9. Qd2 {[%clk 0:02:20]}  Nge7 {[%clk 0:02:26]} 10. Bh6 {[%clk 0:02:19]}  O-O {[%clk 0:02:24]} 11. h4 {[%clk 0:02:19]}  a6 {[%clk 0:02:01]} 12. h5 {[%clk 0:02:17]}  b5 {[%clk 0:01:58]} 13. Bxg7 {[%clk 0:02:15]}  Kxg7 {[%clk 0:01:57]} 14. hxg6 {[%clk 0:02:14]}  Nxg6 {[%clk 0:01:42]} 15. e5 {[%clk 0:02:01]}  Rh8 {[%clk 0:01:35]} 16. Qh6+ {[%clk 0:01:59]}  Kg8 {[%clk 0:01:34]} 17. Ne4 {[%clk 0:01:58]}  f5 {[%clk 0:01:24]} 18. Nf6+ {[%clk 0:01:31]}  Kf7 {[%clk 0:01:23]} 19. Nxh7 {[%clk 0:01:32]}  bxc4 {[%clk 0:01:18]} 20. Ng5+ {[%clk 0:01:27]}  Ke7 {[%clk 0:01:13]} 21. Qg7+ {[%clk 0:01:25]}  Ke8 {[%clk 0:01:11]} 22. Qf7# {[%clk 0:01:26]} 1-0


[Site "https://www.chess.com"]

[Event "Titled Tuesday Blitz February 15 Late 2022"]
[White "Iskusnyh, Sergei"]
[Black "Gubajdullin, Alexei"]
[WhiteFideId "4120027"]
[BlackFideId "4141202"]
[WhiteElo "2659"]
[BlackElo "2557"]
[Result "1-0"]
[Round "10"]
[TimeControl "180+1"]
[Date "2022.02.16"]
[WhiteClock "0:00:43"]
[BlackClock "0:01:06"]

1. d4 {[%clk 0:02:59]}  g6 {[%clk 0:02:59]} 2. c4 {[%clk 0:02:57]}  Bg7 {[%clk 0:02:59]} 3. Nf3 {[%clk 0:02:58]}  d6 {[%clk 0:02:58]} 4. g3 {[%clk 0:02:57]}  Nf6 {[%clk 0:02:58]} 5. Bg2 {[%clk 0:02:57]}  O-O {[%clk 0:02:58]} 6. O-O {[%clk 0:02:57]}  Nbd7 {[%clk 0:02:58]} 7. Nc3 {[%clk 0:02:57]}  e5 {[%clk 0:02:59]} 8. e4 {[%clk 0:02:57]}  c6 {[%clk 0:02:59]} 9. Be3 {[%clk 0:02:57]}  exd4 {[%clk 0:02:48]} 10. Nxd4 {[%clk 0:02:56]}  Re8 {[%clk 0:02:46]} 11. h3 {[%clk 0:02:52]}  Nc5 {[%clk 0:02:37]} 12. Qc2 {[%clk 0:02:51]}  a5 {[%clk 0:02:37]} 13. Rad1 {[%clk 0:02:51]}  Nfd7 {[%clk 0:02:35]} 14. b3 {[%clk 0:02:48]}  Qe7 {[%clk 0:02:31]} 15. Rfe1 {[%clk 0:02:47]}  h5 {[%clk 0:02:28]} 16. f4 {[%clk 0:02:42]}  Nf6 {[%clk 0:02:16]} 17. Bf2 {[%clk 0:02:41]}  h4 {[%clk 0:02:07]} 18. g4 {[%clk 0:02:35]}  Bxg4 {[%clk 0:02:06]} 19. hxg4 {[%clk 0:02:29]}  Nxg4 {[%clk 0:02:06]} 20. Bf3 {[%clk 0:02:06]}  Nxf2 {[%clk 0:02:04]} 21. Qxf2 {[%clk 0:02:06]}  Qf6 {[%clk 0:02:03]} 22. Bg2 {[%clk 0:01:54]}  Re7 {[%clk 0:01:54]} 23. Nde2 {[%clk 0:01:26]}  b6 {[%clk 0:01:44]} 24. Nd4 {[%clk 0:01:04]}  Rc8 {[%clk 0:01:39]} 25. e5 {[%clk 0:00:55]}  dxe5 {[%clk 0:01:36]} 26. Nxc6 {[%clk 0:00:55]}  Rxc6 {[%clk 0:01:32]} 27. Nd5 {[%clk 0:00:55]}  Qd6 {[%clk 0:01:26]} 28. Nxe7+ {[%clk 0:00:53]}  Qxe7 {[%clk 0:01:25]} 29. Bxc6 {[%clk 0:00:53]}  Qc7 {[%clk 0:01:14]} 30. Bd5 {[%clk 0:00:49]}  exf4 {[%clk 0:01:13]} 31. Re8+ {[%clk 0:00:48]}  Kh7 {[%clk 0:01:10]} 32. Qxh4+ {[%clk 0:00:46]}  Bh6 {[%clk 0:01:10]} 33. Rh8+ {[%clk 0:00:43]}  Kxh8 {[%clk 0:01:08]} 34. Qxh6+ {[%clk 0:00:43]}  Kg8 {[%clk 0:01:08]} 35. Qxg6+ {[%clk 0:00:43]}  Kf8 {[%clk 0:01:07]} 36. Qh6+ {[%clk 0:00:43]}  Kg8 {[%clk 0:01:06]} 37. Kh1 {[%clk 0:00:43]} 1-0


[Site "https://www.chess.com"]